fUSD/lending_fUSD_20250426
["ID","MTS","AMOUNT","RATE_DAILY","PERIOD"]
[359098817,1745706644637,-400.0,0.0001978,2]
[359098819,1745706644646,-400.0,0.0001978,2]
[359098821,1745706644657,-400.0,0.0001978,2]
[359098823,1745706644666,-400.0,0.0001978,2]
[359098825,1745706644677,-400.0,0.0001978,2]
[359098827,1745706644686,-400.0,0.0001978,2]
[359098829,1745706644697,-400.0,0.0001978,2]
[359098831,1745706644706,-400.0,0.0001978,2]
[359098833,1745706644716,-691.09,0.0001978,2]
[359098835,1745706644725,-510.8509464,0.0001978,2]
[359098837,1745706644735,-400.0,0.0001978,2]
[359098839,1745706644745,-515.52386611,0.0001978,2]
[359098841,1745706644755,-400.0,0.0001978,2]
[359098843,1745706644765,-400.0,0.0001978,2]
[359098845,1745706644774,-500.0,0.0001978,2]
[359098847,1745706644783,-721.54,0.0001978,2]
[359098849,1745706644793,-520.48143566,0.0001978,2]
[359098851,1745706644803,-150.0,0.0001978,2]
[359098853,1745706644813,-456.56,0.0001978,2]
[359098855,1745706644823,-400.0,0.0001978,2]
[359098857,1745706644833,-150.0,0.0001978,2]
[359098859,1745706644843,-644.0,0.0001978,2]
[359098861,1745706644853,-400.0,0.0001978,2]
[359098863,1745706644863,-509.53,0.0001978,2]
[359098865,1745706644872,-727.5,0.0001978,2]
[359098867,1745706644882,-400.0,0.0001978,2]
[359098869,1745706644892,-400.0,0.0001978,2]
[359098872,1745706644902,-795.74,0.0001978,2]
[359098873,1745706644912,-400.0,0.0001978,2]
[359098876,1745706644923,-400.0,0.0001978,2]
[359098878,1745706644934,-858.83,0.0001978,2]
[359098880,1745706644943,-150.0,0.0001978,2]
[359098882,1745706644953,-400.0,0.0001978,2]
[359098883,1745706644962,-400.0,0.0001978,2]
[359098885,1745706644972,-400.0,0.0001978,2]
[359098888,1745706644982,-400.0,0.0001978,2]
[359098890,1745706644992,-776.66,0.0001978,2]
[359098892,1745706645001,-400.0,0.0001978,2]
[359098894,1745706645012,-400.0,0.0001978,2]
[359098896,1745706645022,-2321.02,0.0001978,2]
[359098898,1745706645032,-400.0,0.0001978,2]
[359098900,1745706645042,-400.0,0.0001978,2]
[359098902,1745706645052,-400.0,0.0001978,2]
[359098904,1745706645062,-400.0,0.0001978,2]
[359098906,1745706645072,-400.0,0.0001978,2]
[359098908,1745706645081,-400.0,0.0001978,2]
[359098910,1745706645091,-681.38,0.0001978,2]
[359098912,1745706645101,-400.0,0.0001978,2]
[359098914,1745706645112,-610.59,0.0001978,2]
[359098916,1745706645122,-462.76,0.0001978,2]
[359098918,1745706645132,-438.67,0.0001978,2]
[359098920,1745706645141,-400.0,0.0001978,2]
[359098922,1745706645152,-400.0,0.0001978,2]
[359098924,1745706645162,-400.0,0.0001978,2]
[359098926,1745706645173,-400.0,0.0001978,2]
[359098928,1745706645183,-400.0,0.0001978,2]
[359098930,1745706645194,-400.0,0.0001978,2]
[359098932,1745706645203,-440.67,0.0001978,2]
[359098934,1745706645213,-518.00734972,0.0001978,2]
[359098936,1745706645223,-433.01,0.0001978,2]
[359098938,1745706645233,-932.08,0.0001978,2]
[359098940,1745706645242,-400.0,0.0001978,2]
[359098942,1745706645252,-400.0,0.0001978,2]
[359098943,1745706645263,-4056.6,0.0001978,2]
[359098945,1745706645274,-400.0,0.0001978,2]
[359098947,1745706645285,-400.0,0.0001978,2]
[359098950,1745706645295,-400.0,0.0001978,2]
[359098952,1745706645305,-520.05285185,0.0001978,2]
[359098954,1745706645315,-425.33874986,0.0001978,2]
[359098955,1745706645326,-400.0,0.0001978,2]
[359098957,1745706645337,-400.0,0.0001978,2]
[359098960,1745706645347,-400.0,0.0001978,2]
[359098961,1745706645356,-546.31,0.0001978,2]
[359098963,1745706645367,-707.26,0.0001978,2]
[359098966,1745706645377,-150.0,0.0001978,2]
[359098968,1745706645389,-400.0,0.0001978,2]
[359098970,1745706645399,-400.0,0.0001978,2]
[359098971,1745706645409,-150.0,0.0001978,2]
[359098973,1745706645420,-421.2,0.0001978,2]
[359098975,1745706645430,-400.0,0.0001978,2]
[359098977,1745706645440,-150.0,0.0001978,2]
[359098979,1745706645449,-400.0,0.0001978,2]
[359098981,1745706645459,-400.0,0.0001978,2]
[359098983,1745706645468,-562.78,0.0001978,2]
[359098994,1745706645561,-400.0,0.0001978,2]
[359098996,1745706645571,-80144.06,0.0001978,2]
[359098998,1745706645580,-400.0,0.0001978,2]
[359099000,1745706645590,-400.0,0.0001978,2]
[359099002,1745706645599,-400.0,0.0001978,2]
[359099004,1745706645608,-400.0,0.0001978,2]
[359099006,1745706645617,-400.0,0.0001978,2]
[359099008,1745706645627,-400.0,0.0001978,2]
[359099010,1745706645636,-400.0,0.0001978,2]
[359099012,1745706645645,-9046.58,0.0001978,2]
[359099014,1745706645655,-400.0,0.0001978,2]
[359099015,1745706645664,-400.0,0.0001978,2]
[359099017,1745706645673,-400.0,0.0001978,2]
[359099019,1745706645683,-506.30943716,0.0001978,2]
[359099021,1745706645693,-600.3,0.0001978,2]
[359099023,1745706645703,-4462.53,0.0001978,2]
[359099026,1745706645713,-400.0,0.0001978,2]
[359099027,1745706645723,-619.61,0.0001978,2]
[359099029,1745706645732,-400.0,0.0001978,2]
[359099031,1745706645742,-400.0,0.0001978,2]
[359099033,1745706645751,-597.82,0.0001978,2]
[359099035,1745706645760,-500.0,0.0001978,2]
[359099037,1745706645770,-1849.04,0.0001978,2]
[359099039,1745706645779,-400.0,0.0001978,2]
[359099041,1745706645788,-400.0,0.0001978,2]
[359099044,1745706645798,-489.05,0.0001978,2]
[359099047,1745706645807,-400.0,0.0001978,2]
[359099049,1745706645816,-400.0,0.0001978,2]
[359099051,1745706645826,-500.0,0.0001978,2]
[359099053,1745706645835,-400.0,0.0001978,2]
[359099055,1745706645844,-500.0,0.0001978,2]
[359099057,1745706645854,-500.0,0.0001978,2]
[359099059,1745706645863,-400.0,0.0001978,2]
[359099061,1745706645872,-518.58376662,0.0001978,2]
[359099063,1745706645882,-3462.36,0.0001978,2]
[359099065,1745706645891,-238.91678823,0.0001978,2]
[359099067,1745706645901,-400.0,0.0001978,2]
[359099069,1745706645910,-400.0,0.0001978,2]
[359099070,1745706645921,-400.0,0.0001978,2]
[359099072,1745706645931,-750.72,0.0001978,2]
[359099074,1745706645941,-400.0,0.0001978,2]
[359099076,1745706645950,-400.0,0.0001978,2]
[359099078,1745706645960,-500.0,0.0001978,2]
[359099080,1745706645970,-595.13,0.0001978,2]
[359099082,1745706645979,-214.34432765,0.0001978,2]
[359099084,1745706645989,-150.0,0.0001978,2]
[359099086,1745706646000,-150.0,0.0001978,2]
[359099088,1745706646009,-478.55,0.0001978,2]
[359099090,1745706646018,-400.0,0.0001978,2]
[359099092,1745706646028,-500.0,0.0001978,2]
[359099094,1745706646037,-400.0,0.0001978,2]
[359099096,1745706646046,-400.0,0.0001978,2]
[359099098,1745706646056,-460.98,0.0001978,2]
[359099100,1745706646065,-400.0,0.0001978,2]
[359099102,1745706646075,-400.0,0.0001978,2]
[359099104,1745706646084,-680.79,0.0001978,2]
[359099106,1745706646094,-400.11,0.0001978,2]
[359099108,1745706646103,-400.0,0.0001978,2]
[359099110,1745706646113,-736.63,0.0001978,2]
[359099112,1745706646122,-400.0,0.0001978,2]
[359099113,1745706646132,-711.44,0.0001978,2]
[359099115,1745706646142,-400.0,0.0001978,2]
[359099117,1745706646152,-400.0,0.0001978,2]
[359099119,1745706646165,-638.85,0.0001978,2]
[359099121,1745706646174,-515.42272426,0.0001978,2]
[359099123,1745706646183,-400.0,0.0001978,2]
[359099125,1745706646193,-400.0,0.0001978,2]
[359099127,1745706646202,-395.04628918,0.0001978,2]
[359099129,1745706646212,-400.0,0.0001978,2]
[359099131,1745706646222,-400.0,0.0001978,2]
[359099133,1745706646231,-400.0,0.0001978,2]
[359099135,1745706646242,-560.86,0.0001978,2]
[359099137,1745706646251,-400.0,0.0001978,2]
[359099139,1745706646262,-400.0,0.0001978,2]
[359099141,1745706646271,-400.0,0.0001978,2]
[359099143,1745706646281,-400.0,0.0001978,2]
[359099144,1745706646290,-400.0,0.0001978,2]
[359099146,1745706646299,-400.0,0.0001978,2]
[359099148,1745706646308,-400.0,0.0001978,2]
[359099150,1745706646318,-400.0,0.0001978,2]
[359099152,1745706646327,-400.0,0.0001978,2]
[359099154,1745706646336,-500.0,0.0001978,2]
[359099156,1745706646346,-400.0,0.0001978,2]
[359099158,1745706646355,-400.0,0.0001978,2]
[359099160,1745706646365,-400.0,0.0001978,2]
[359099162,1745706646374,-400.0,0.0001978,2]
[359099164,1745706646384,-486.21,0.0001978,2]
[359099166,1745706646392,-400.0,0.0001978,2]
[359099167,1745706646402,-400.0,0.0001978,2]
[359099169,1745706646411,-400.0,0.0001978,2]
[359099171,1745706646421,-516.95,0.0001978,2]
[359099173,1745706646430,-502.9539834,0.0001978,2]
[359099175,1745706646439,-500.0,0.0001978,2]
[359099177,1745706646448,-400.0,0.0001978,2]
[359099179,1745706646459,-400.0,0.0001978,2]
[359099181,1745706646469,-942.99,0.0001978,2]
[359099183,1745706646478,-400.0,0.0001978,2]
[359099185,1745706646488,-502.21703479,0.0001978,2]
[359099187,1745706646497,-427.87,0.0001978,2]
[359099189,1745706646506,-400.0,0.0001978,2]
[359099191,1745706646515,-936.75,0.0001978,2]
[359099192,1745706646524,-400.0,0.0001978,2]
[359099194,1745706646534,-400.0,0.0001978,2]
[359099196,1745706646542,-500.0,0.0001978,2]
[359099198,1745706646551,-500.0,0.0001978,2]
[359099200,1745706646561,-500.0,0.0001978,2]
[359099202,1745706646570,-500.0,0.0001978,2]
[359099204,1745706646579,-400.0,0.0001978,2]
[359099206,1745706646589,-251.69064904,0.0001978,2]
[359099208,1745706646598,-400.0,0.0001978,2]
[359099210,1745706646607,-400.0,0.0001978,2]
[359099212,1745706646616,-500.0,0.0001978,2]
[359099214,1745706646626,-400.0,0.0001978,2]
[359099216,1745706646635,-400.0,0.0001978,2]
[359099218,1745706646644,-400.0,0.0001978,2]
[359099220,1745706646654,-400.0,0.0001978,2]
[359099222,1745706646663,-400.0,0.0001978,2]
[359099224,1745706646673,-400.0,0.0001978,2]
[359099226,1745706646682,-400.0,0.0001978,2]
[359099228,1745706646692,-400.0,0.0001978,2]
[359099230,1745706646701,-400.0,0.0001978,2]
[359099231,1745706646711,-400.0,0.0001978,2]
[359099233,1745706646720,-400.0,0.0001978,2]
[359099235,1745706646729,-400.0,0.0001978,2]
[359099237,1745706646739,-400.0,0.0001978,2]
[359099239,1745706646749,-671.65,0.0001978,2]
[359099241,1745706646759,-400.0,0.0001978,2]
[359099243,1745706646769,-416.25,0.0001978,2]
[359099246,1745706646784,-500.0,0.0001978,2]
[359099248,1745706646794,-400.0,0.0001978,2]
[359099250,1745706646804,-507.73663296,0.0001978,2]
[359099252,1745706646814,-400.0,0.0001978,2]
[359099254,1745706646824,-718.27,0.0001978,2]
[359099256,1745706646833,-400.0,0.0001978,2]
[359099258,1745706646845,-400.0,0.0001978,2]
[359099260,1745706646855,-500.0,0.0001978,2]
[359099262,1745706646864,-400.0,0.0001978,2]
[359099264,1745706646874,-400.0,0.0001978,2]
[359099266,1745706646884,-400.0,0.0001978,2]
[359099268,1745706646893,-400.0,0.0001978,2]
[359099270,1745706646903,-400.0,0.0001978,2]
[359099272,1745706646912,-400.0,0.0001978,2]
[359099274,1745706646923,-429.78,0.0001978,2]
[359099276,1745706646934,-400.0,0.0001978,2]
[359099278,1745706646944,-400.0,0.0001978,2]
[359099279,1745706646953,-465.2,0.0001978,2]
[359099281,1745706646962,-510.4999362,0.0001978,2]
[359099283,1745706646972,-400.0,0.0001978,2]
[359099285,1745706646981,-499.48,0.0001978,2]
[359099287,1745706646991,-649.43,0.0001978,2]
[359099289,1745706647000,-400.0,0.0001978,2]
[359099291,1745706647010,-400.0,0.0001978,2]
[359099293,1745706647019,-1474.52,0.00019781,2]
[359099295,1745706647029,-400.0,0.00019781,2]
[359099297,1745706647038,-400.0,0.00019781,2]
[359099299,1745706647048,-400.0,0.00019781,2]
[359099301,1745706647058,-400.0,0.00019781,2]
[359099303,1745706647068,-528.99536645,0.00019781,2]
[359099305,1745706647078,-181.05139569,0.00019781,2]
[359099307,1745706647087,-633.48,0.00019781,2]
[359099309,1745706647097,-400.0,0.00019781,2]
[359099311,1745706647108,-429.37,0.00019781,2]
[359099313,1745706647117,-608.65,0.00019781,2]
[359099315,1745706647127,-505.80791502,0.00019781,2]
[359099317,1745706647137,-529.05749259,0.00019781,2]
[359099319,1745706647147,-400.0,0.00019781,2]
[359099321,1745706647157,-507.27729147,0.00019781,2]
[359099323,1745706647167,-400.0,0.00019781,2]
[359099325,1745706647177,-400.0,0.00019781,2]
[359099327,1745706647186,-500.0,0.00019781,2]
[359099329,1745706647196,-389.02463321,0.00019781,2]
[359099331,1745706647206,-400.0,0.00019781,2]
[359099333,1745706647216,-400.0,0.00019781,2]
[359099335,1745706647231,-400.0,0.00019781,2]
[359099336,1745706647241,-400.0,0.00019781,2]
[359099337,1745706647251,-400.0,0.00019781,2]
[359099338,1745706647262,-400.0,0.00019781,2]
[359099339,1745706647271,-500.0,0.00019781,2]
[359099340,1745706647281,-400.0,0.00019781,2]
[359099341,1745706647291,-300.0,0.00019781,2]
[359099342,1745706647300,-499.61,0.00019781,2]
[359099343,1745706647310,-462.21,0.00019781,2]
[359099344,1745706647320,-400.0,0.00019781,2]
[359099345,1745706647330,-400.0,0.00019781,2]
[359099346,1745706647339,-400.0,0.00019781,2]
[359099347,1745706647349,-500.0,0.00019781,2]
[359099348,1745706647358,-400.0,0.00019781,2]
[359099349,1745706647367,-400.0,0.00019781,2]
[359099350,1745706647377,-400.0,0.00019781,2]
[359099351,1745706647387,-166.08524711,0.00019781,2]
[359099352,1745706647396,-400.0,0.00019781,2]
[359099354,1745706647407,-400.0,0.00019781,2]
[359099356,1745706647417,-400.0,0.00019781,2]
[359099358,1745706647427,-400.0,0.00019781,2]
[359099360,1745706647436,-500.0,0.00019781,2]
[359099362,1745706647446,-400.0,0.00019781,2]
[359099364,1745706647457,-627.22,0.00019781,2]
[359099366,1745706647467,-400.0,0.00019781,2]
[359099368,1745706647477,-500.0,0.00019781,2]
[359099370,1745706647487,-400.0,0.00019781,2]
[359099372,1745706647497,-662.85,0.00019781,2]
[359099374,1745706647508,-764.35,0.00019781,2]
[359099375,1745706647519,-250.63054389,0.00019781,2]
[359099377,1745706647528,-427.47655782,0.00019781,2]
[359099379,1745706647538,-400.0,0.00019781,2]
[359099381,1745706647548,-500.0,0.00019781,2]
[359099383,1745706647558,-400.0,0.00019781,2]
[359099385,1745706647567,-400.0,0.00019781,2]
[359099387,1745706647577,-400.0,0.00019781,2]
[359099389,1745706647586,-400.0,0.00019781,2]
[359099391,1745706647595,-579.31,0.00019781,2]
[359099393,1745706647605,-400.0,0.00019781,2]
[359099395,1745706647615,-400.0,0.00019781,2]
[359099397,1745706647624,-400.0,0.00019781,2]
[359099399,1745706647633,-500.0,0.00019781,2]
[359099401,1745706647643,-400.0,0.00019781,2]
[359099403,1745706647653,-500.0,0.00019781,2]
[359099406,1745706647669,-500.0,0.00019781,2]
[359099409,1745706647686,-400.0,0.00019781,2]
[359099411,1745706647696,-458.52,0.00019781,2]
[359099413,1745706647706,-400.0,0.00019781,2]
[359099415,1745706647715,-487.91,0.00019781,2]
[359099417,1745706647725,-424.95,0.00019781,2]
[359099419,1745706647736,-400.0,0.00019781,2]
[359099421,1745706647747,-500.0,0.00019781,2]
[359099423,1745706647757,-400.0,0.00019781,2]
[359099425,1745706647767,-400.0,0.00019781,2]
[359099427,1745706647778,-400.0,0.00019781,2]
[359099429,1745706647788,-500.0,0.00019781,2]
[359099431,1745706647798,-400.0,0.00019781,2]
[359099433,1745706647809,-400.0,0.00019781,2]
[359099435,1745706647819,-690.97,0.00019781,2]
[359099437,1745706647829,-400.0,0.00019781,2]
[359099439,1745706647839,-400.0,0.00019781,2]
[359099441,1745706647848,-531.85,0.00019781,2]
[359099443,1745706647858,-400.0,0.00019782,2]
[359099446,1745706647869,-400.0,0.00019782,2]
[359099448,1745706647881,-400.0,0.00019782,2]
[359099450,1745706647892,-400.0,0.00019782,2]
[359099452,1745706647902,-488.20468367,0.00019782,2]
[359099454,1745706647912,-400.0,0.00019782,2]
[359099456,1745706647922,-400.0,0.00019782,2]
[359099458,1745706647935,-400.0,0.00019782,2]
[359099460,1745706647947,-696.85,0.00019782,2]
[359099462,1745706647956,-500.0,0.00019782,2]
[359099464,1745706647966,-500.0,0.00019785,2]
[359099466,1745706647978,-215.28252671,0.00019785,2]
[359099468,1745706647989,-152.016543,0.00019786,2]
[359099470,1745706647999,-151.0,0.00019786,2]
[359099472,1745706648009,-218.568782,0.00019786,2]
[359099474,1745706648021,-218.568782,0.00019786,2]
[359099476,1745706648031,-500.0,0.00019791,2]
[359099478,1745706648041,-696.85,0.00019792,2]
[359099480,1745706648052,-500.0,0.00019798,2]
[359099482,1745706648062,-735.8646718,0.00019799,2]
[359099484,1745706648073,-500.0,0.00019799,2]
[359099486,1745706648084,-696.85,0.00019799,2]
[359099488,1745706648094,-151.0,0.000198,2]
[359099490,1745706648104,-218.568782,0.000198,2]
[359099493,1745706648120,-218.568782,0.000198,2]
[359099495,1745706648129,-153031.88953839,0.000198,2]
[359099497,1745706648139,-2685.38876888,0.00019802,2]
[359099499,1745706648151,-178.26918905,0.00019805,2]
[359099501,1745706648161,-150.0,0.00019807,2]
[359099503,1745706648172,-644.0,0.00019807,2]
[359099506,1745706648184,-150.0,0.00019807,2]
[359099508,1745706648194,-2685.38876888,0.00019827,2]
[359099510,1745706648206,-200.0,0.00019835,2]
[359099512,1745706648217,-644.0,0.00019835,2]
[359099514,1745706648228,-178.26918905,0.00019837,2]
[359099516,1745706648240,-2685.38876888,0.00019851,2]
[359099519,1745706648251,-644.0,0.00019862,2]
[359099521,1745706648263,-158.68254028,0.00019866,2]
[359099523,1745706648274,-178.26918905,0.00019868,2]
[359099525,1745706648284,-151.0,0.00019869,2]
[359099527,1745706648296,-151.0,0.00019869,2]
[359099530,1745706648307,-151.0,0.0001987,2]
[359099532,1745706648318,-151.0,0.0001987,2]
[359099534,1745706648330,-151.0,0.0001987,2]
[359099536,1745706648341,-151.0,0.0001987,2]
[359099538,1745706648351,-151.0,0.00019871,2]
[359099540,1745706648362,-151.0,0.00019871,2]
[359099542,1745706648374,-2685.38876888,0.00019876,2]
[359099545,1745706648386,-644.0,0.0001989,2]
[359099547,1745706648397,-696.85,0.00019899,2]
[359099549,1745706648408,-150.0,0.000199,2]
[359099551,1745706648418,-150.0,0.000199,2]
[359099553,1745706648429,-900.66,0.000199,2]
[359099555,1745706648440,-1151.69,0.000199,2]
[359099557,1745706648451,-150.0,0.000199,2]
[359099559,1745706648462,-161.91,0.000199,2]
[359099562,1745706648473,-150.0,0.000199,2]
[359099564,1745706648483,-1151.69,0.000199,2]
[359099566,1745706648495,-161.91,0.000199,2]
[359099568,1745706648506,-1151.69,0.000199,2]
[359099570,1745706648516,-150.0,0.000199,2]
[359099572,1745706648527,-1076.27,0.000199,2]
[359099575,1745706648542,-265.87,0.000199,2]
[359099577,1745706648553,-161.91,0.000199,2]
[359099579,1745706648565,-1151.69,0.000199,2]
[359099581,1745706648575,-450.63,0.000199,2]
[359099583,1745706648585,-161.91,0.000199,2]
[359099585,1745706648596,-150.0,0.000199,2]
[359099588,1745706648607,-799.84,0.000199,2]
[359099590,1745706648618,-351.4,0.000199,2]
[359099592,1745706648630,-161.91,0.000199,2]
[359099594,1745706648642,-1151.69,0.000199,2]
[359099596,1745706648652,-150.0,0.000199,2]
[359099598,1745706648663,-351.4,0.000199,2]
[359099600,1745706648674,-717.46,0.000199,2]
[359099602,1745706648686,-455.14,0.000199,2]
[359099605,1745706648697,-1151.69,0.000199,2]
[359099607,1745706648708,-450.63,0.000199,2]
[359099609,1745706648719,-2685.38876888,0.000199,2]
[359099611,1745706648730,-10971.48454667,0.000199,2]
[359099613,1745706648741,-168.56609644,0.000199,2]
[359099615,1745706648751,-178.26918905,0.000199,2]
[359099617,1745706648763,-644.0,0.00019917,2]
[359099619,1745706648774,-1287.0,0.00019934,2]
[359099621,1745706648785,-796.0,0.00019934,2]
[359099624,1745706648796,-548.0,0.00019934,2]
[359099626,1745706648807,-911.0,0.00019934,2]
[359099628,1745706648818,-579.0,0.00019934,2]
[359099630,1745706648829,-2063.0,0.00019934,2]
[359099632,1745706648840,-1446.0,0.00019934,2]
[359099634,1745706648851,-1135.0,0.00019934,2]
[359099636,1745706648862,-1336.0,0.00019934,2]
[359099638,1745706648874,-153.0,0.00019934,2]
[359099641,1745706648885,-6193.0,0.00019934,2]
[359099643,1745706648895,-3991.0,0.00019934,2]
[359099645,1745706648907,-644.0,0.00019944,2]
[359099647,1745706648919,-187.0,0.00019945,2]
[359099649,1745706648930,-400.0,0.00019965,2]
[359099651,1745706648944,-400.0,0.00019965,2]
[359099653,1745706648955,-3116.859,0.00019965,2]
[359099656,1745706648966,-174.042,0.00019965,2]
[359099658,1745706648981,-500.0,0.00019965,2]
[359099660,1745706648992,-500.0,0.00019965,2]
[359099662,1745706649003,-638.85,0.00019965,2]
[359099664,1745706649014,-638.85,0.00019965,2]
[359099666,1745706649025,-500.0,0.00019965,2]
[359099668,1745706649036,-500.0,0.00019965,2]
[359099670,1745706649047,-500.0,0.00019965,2]
[359099673,1745706649058,-500.0,0.00019965,2]
[359099675,1745706649069,-500.0,0.00019965,2]
[359099677,1745706649080,-500.0,0.00019965,2]
[359099679,1745706649091,-2683.0488672,0.00019966,2]
[359099681,1745706649102,-116346.8249999,0.00019966,2]
[359099683,1745706649114,-16006.6187105,0.00019966,2]
[359099685,1745706649125,-72218.8405685,0.00019966,2]
[359099687,1745706649136,-156.326837,0.00019966,2]
[359099689,1745706649147,-151.0,0.00019966,2]
[359099692,1745706649158,-2219.7058604,0.00019966,2]
[359099694,1745706649168,-151.0,0.00019966,2]
[359099696,1745706649179,-151.0,0.00019966,2]
[359099698,1745706649190,-151.0,0.00019966,2]
[359099700,1745706649201,-151.0,0.00019966,2]
[359099702,1745706649212,-151.0,0.00019966,2]
[359099704,1745706649223,-151.0,0.00019966,2]
[359099706,1745706649233,-151.921909,0.00019966,2]
[359099708,1745706649244,-207.069999,0.00019966,2]
[359099710,1745706649254,-207.069999,0.00019966,2]
[359099712,1745706649265,-156.311182,0.00019966,2]
[359099714,1745706649276,-31.70499636,0.0001997,2]
[359099775,1745706649853,-408.54125118,0.0001997,2]
[359099777,1745706649863,-644.0,0.00019972,2]
[359099779,1745706649873,-500.0,0.00019973,2]
[359099781,1745706649883,-500.0,0.00019973,2]
[359099783,1745706649894,-500.0,0.00019973,2]
[359099785,1745706649904,-500.0,0.00019973,2]
[359099787,1745706649914,-500.0,0.00019973,2]
[359099789,1745706649924,-500.0,0.00019973,2]
[359099791,1745706649934,-500.0,0.00019973,2]
[359099793,1745706649947,-631.98009462,0.00019973,2]
[359099795,1745706649958,-500.0,0.00019973,2]
[359099797,1745706649968,-500.0,0.00019973,2]
[359099799,1745706649979,-541.34995362,0.00019973,2]
[359099801,1745706649990,-500.0,0.00019973,2]
[359099803,1745706650000,-300.0,0.00019979,2]
[359099805,1745706650011,-250.46,0.00019979,2]
[359099807,1745706650022,-696.85,0.00019979,2]
[359099809,1745706650033,-696.85,0.00019979,2]
[359099811,1745706650044,-696.85,0.00019979,2]
[359099814,1745706650054,-696.85,0.00019979,2]
[359099816,1745706650064,-696.85,0.00019979,2]
[359099818,1745706650075,-696.85,0.00019979,2]
[359099820,1745706650086,-696.85,0.00019979,2]
[359099849,1745706650367,-500.0,0.00019979,2]
[359099851,1745706650378,-500.0,0.00019979,2]
[359099853,1745706650387,-500.0,0.00019979,2]
[359099855,1745706650398,-300.0,0.00019979,2]
[359099857,1745706650407,-638.85,0.00019979,2]
[359099859,1745706650418,-638.85,0.00019979,2]
[359099861,1745706650428,-638.85,0.00019979,2]
[359099863,1745706650437,-500.0,0.00019979,2]
[359099865,1745706650447,-500.0,0.00019979,2]
[359099867,1745706650457,-500.0,0.00019979,2]
[359099869,1745706650467,-500.0,0.00019979,2]
[359099871,1745706650478,-500.0,0.00019979,2]
[359099873,1745706650488,-500.0,0.00019979,2]
[359099875,1745706650497,-500.0,0.00019979,2]
[359099877,1745706650507,-500.0,0.00019979,2]
[359099879,1745706650516,-500.0,0.00019979,2]
[359099881,1745706650525,-574.4477874,0.00019979,2]
[359099883,1745706650534,-500.0,0.00019979,2]
[359099885,1745706650544,-500.0,0.00019979,2]
[359099887,1745706650554,-500.0,0.00019979,2]
[359099889,1745706650563,-666.0,0.00019979,2]
[359099891,1745706650573,-551943.43593845,0.0001998,2]
[359099897,1745706650618,-500.0,0.00019779,2]
[359099899,1745706650628,-4232.75,0.0001998,2]
[359099900,1745706650643,-33964.96294526,0.0001998,2]
[359099944,1745706651218,-194.12937375,0.00019778,2]
[359099946,1745706651227,-400.0,0.00019779,2]
[359099948,1745706651237,-400.0,0.00019779,2]
[359099950,1745706651247,-836.27062623,0.0001998,2]